bitfinex/quotes_SOLUSD_20241110
["timestamp","ask_amount","ask_price","bid_price","bid_amount"]
[1731270263406,36.44738229,206.11,206.04,36.44738229]
[1731270263723,36.44738229,206.13,206.05,36.44738229]
[1731270264529,51.69818229,206.15,206.07,36.44738229]
[1731270264831,15.2508,206.15,206.12,36.44738229]
[1731270265042,6.1002,206.2,206.14,36.44738229]
[1731270265409,15.2508,206.22,206.12,0.1]
[1731270265633,36.44738229,206.27,206.12,0.1]
[1731270265808,6.1002,206.28,206.19,36.44738229]
[1731270266008,36.44738229,206.26,206.19,36.44738229]
[1731270266229,36.44738229,206.27,206.19,36.44738229]
[1731270266409,6.1002,206.28,206.13,0.1]
[1731270266410,6.1002,206.28,206.21,36.44738229]
[1731270266620,51.69818229,206.29,206.23,36.44738229]
[1731270266920,15.2508,206.29,206.24,4.8487]
[1731270267124,36.44738229,206.28,206.23,4.8488]
[1731270267437,15.2508,206.29,206.23,16.9711]
[1731270267940,15.2508,206.29,206.23,53.41848229]
[1731270268141,36.44738229,206.32,206.25,36.44738229]
[1731270268825,36.44738229,206.29,206.23,16.9711]
[1731270269117,4.8466,206.33,206.16,24.4519]
[1731270269118,36.44738229,206.26,206.17,48.57268229]
[1731270269327,36.44738229,206.24,206.17,48.57268229]
[1731270269809,36.44738229,206.25,206.17,48.57268229]
[1731270270021,36.44738229,206.26,206.18,36.44738229]
[1731270270209,36.44738229,206.24,206.19,4.8498]
[1731270270842,36.44738229,206.28,206.21,36.44738229]
[1731270271029,36.44738229,206.32,206.25,36.44738229]
[1731270271419,36.44738229,206.33,206.26,36.44738229]
[1731270271722,6.1002,206.34,206.26,36.44738229]
[1731270271723,42.54758229,206.34,206.26,36.44738229]
[1731270271922,36.44738229,206.33,206.26,36.44738229]
[1731270272124,42.54758229,206.34,206.26,36.44738229]
[1731270272329,36.44738229,206.33,206.26,36.44738229]
[1731270272542,36.44738229,206.32,206.25,36.44738229]
[1731270272922,42.54758229,206.34,206.26,36.44738229]
[1731270274443,42.54758229,206.34,206.27,16.968]
[1731270274941,36.44738229,206.32,206.25,4.8483]
[1731270275229,36.44738229,206.31,206.25,4.8483]
[1731270275928,42.54758229,206.34,206.26,36.44738229]
[1731270276438,42.54758229,206.34,206.27,4.848]
[1731270276614,36.44738229,206.33,206.27,4.848]
[1731270277133,36.44738229,206.33,206.27,16.968]
[1731270279149,6.1002,206.34,206.28,36.44738229]
[1731270279440,36.44738229,206.35,206.28,36.44738229]
[1731270279818,36.44738229,206.35,206.27,16.968]
[1731270279819,36.44738229,206.35,206.27,53.41538229]
[1731270282548,36.44738229,206.32,206.27,16.968]
[1731270282727,36.44738229,206.28,206.22,12.1224]
[1731270282929,36.44738229,206.24,206.18,4.36813105]
[1731270283235,36.44738229,206.27,206.19,41.29718229]
[1731270283631,36.44738229,206.29,206.22,36.44738229]
[1731270283950,36.44738229,206.32,206.24,36.44738229]
[1731270284237,36.44738229,206.33,206.26,36.44738229]
[1731270284646,36.44738229,206.32,206.25,36.44738229]
[1731270285226,15.2508,206.36,206.29,36.44738229]
[1731270285443,36.44738229,206.35,206.27,36.44738229]
[1731270285634,36.44738229,206.3,206.22,36.44738229]
[1731270285840,20.0967,206.36,206.21,16.9729]
[1731270286137,0.1,206.34,206.21,16.9729]
[1731270286442,0.2,206.34,206.21,12.1235]
[1731270286746,0.2,206.34,206.17,12.1259]
[1731270286747,4.847,206.31,206.17,12.1259]
[1731270287043,36.44738229,206.24,206.17,12.1259]
[1731270287342,36.44738229,206.25,206.18,60.69798229]
[1731270287721,36.44738229,206.26,206.18,77.67338229]
[1731270288228,36.44738229,206.27,206.19,36.44738229]
[1731270288433,36.44738229,206.26,206.18,77.67338229]
[1731270290144,36.44738229,206.29,206.22,36.44738229]
[1731270290331,36.44738229,206.27,206.2,36.44738229]
[1731270290945,36.44738229,206.27,206.21,16.9729]
[1731270293550,36.44738229,206.32,206.25,36.44738229]
[1731270293742,36.44738229,206.35,206.28,36.44738229]
[1731270293953,51.69818229,206.36,206.29,36.44738229]
[1731270294250,15.2508,206.36,206.3,36.44738229]
[1731270294448,36.44738229,206.38,206.31,36.44738229]
[1731270295230,36.44738229,206.37,206.3,48.56528229]
[1731270295440,36.44738229,206.36,206.3,16.965]
[1731270295643,36.44738229,206.35,206.3,16.965]
[1731270295856,4.8452,206.39,206.3,16.965]
[1731270295857,36.44738229,206.37,206.3,16.965]
[1731270296027,36.44738229,206.36,206.3,16.965]
[1731270296231,36.44738229,206.36,206.3,53.41238229]
[1731270296448,36.44738229,206.37,206.3,53.41238229]
[1731270296651,4.8452,206.39,206.3,53.41238229]
[1731270296652,36.44738229,206.36,206.3,16.965]
[1731270297440,36.44738229,206.37,206.3,16.965]
[1731270297960,36.44738229,206.38,206.31,36.44738229]
[1731270298442,36.44738229,206.38,206.3,16.965]
[1731270298443,16.5962,206.43,206.35,36.44738229]
[1731270298651,16.5962,206.43,206.3,53.41238229]
[1731270298652,53.04358229,206.43,206.36,36.44738229]
[1731270299040,53.04358229,206.43,206.37,4.8456]
[1731270299357,16.5962,206.43,206.37,4.8456]
[1731270299571,16.5962,206.43,206.37,16.9597]
[1731270299868,36.44738229,206.41,206.37,12.1141]
[1731270300037,36.44738229,206.4,206.37,12.1141]
[1731270300240,36.44738229,206.38,206.33,4.8464]
[1731270300442,36.44738229,206.4,206.33,41.29378229]
[1731270300665,36.44738229,206.4,206.33,4.8464]
[1731270301151,53.04358229,206.43,206.35,36.44738229]
[1731270301349,16.5962,206.43,206.37,36.44738229]
[1731270301654,43.02078229,206.46,206.38,36.44738229]
[1731270301953,15.5656,206.5,206.41,36.44738229]
[1731270301954,36.44738229,206.49,206.41,36.44738229]
[1731270302154,15.5656,206.5,206.37,0.1]
[1731270302335,6.3589,206.52,206.47,36.44738229]
[1731270302541,15.5656,206.56,206.42,0.1]
[1731270302843,6.3589,206.58,206.53,36.44738229]
[1731270303041,36.44738229,206.6,206.53,41.28908229]
[1731270303244,15.5656,206.62,206.56,36.44738229]
[1731270303538,36.44738229,206.64,206.53,16.9464]
[1731270303859,15.5656,206.68,206.54,23.776884]
[1731270304071,15.5656,206.68,206.55,0.1]
[1731270304375,15.5656,206.68,206.56,0.1]
[1731270304886,36.44738229,206.73,206.57,23.876884]
[1731270305072,36.44738229,206.72,206.64,48.54568229]
[1731270305412,36.44738229,206.73,206.66,36.44738229]
[1731270305557,36.44738229,206.72,206.65,36.44738229]
[1731270305758,36.44738229,206.72,206.64,16.9376]
[1731270305759,36.44738229,206.72,206.64,53.38498229]
[1731270306067,36.44738229,206.71,206.64,53.38498229]
[1731270306270,36.44738229,206.67,206.59,36.44738229]
[1731270306599,0.12549,206.74,206.62,36.44738229]
[1731270306767,4.8369,206.74,206.63,36.44738229]
[1731270307087,36.44738229,206.7,206.63,36.44738229]
[1731270307286,36.44738229,206.73,206.66,36.44738229]
[1731270307472,58.37188229,206.75,206.67,36.44738229]
[1731270307675,21.9245,206.75,206.69,36.44738229]
[1731270308073,21.9245,206.75,206.68,36.44738229]
[1731270308366,36.44738229,206.74,206.66,36.44738229]
[1731270308966,36.44738229,206.72,206.64,36.44738229]
[1731270309191,36.44738229,206.68,206.61,4.8399]
[1731270309485,36.44738229,206.66,206.61,4.8399]
[1731270310197,36.44738229,206.64,206.58,16.9425]
[1731270310395,36.44738229,206.66,206.58,53.38988229]
[1731270310690,36.44738229,206.69,206.61,36.44738229]
[1731270310878,36.44738229,206.67,206.61,36.44738229]
[1731270311084,36.44738229,206.69,206.61,36.44738229]
[1731270311379,36.44738229,206.65,206.6,4.8401]
[1731270311787,36.44738229,206.65,206.58,16.9424]
[1731270311969,36.44738229,206.61,206.53,53.39378229]
[1731270312169,36.44738229,206.57,206.53,16.9464]
[1731270312686,36.44738229,206.55,206.47,12.1077]
[1731270312868,36.44738229,206.55,206.48,12.1077]
[1731270313267,6.2899,206.61,206.48,12.1077]
[1731270313268,36.44738229,206.53,206.48,12.1077]
[1731270313763,36.44738229,206.6,206.52,36.44738229]
[1731270314181,6.2899,206.61,206.52,36.44738229]
[1731270314376,36.44738229,206.6,206.52,36.44738229]
[1731270314709,53.07988229,206.62,206.54,36.44738229]
[1731270315682,53.07988229,206.62,206.56,36.44738229]
[1731270316372,35.94738229,206.64,206.56,36.44738229]
[1731270317290,36.44738229,206.62,206.55,16.945]
[1731270317774,6.2899,206.67,206.55,16.945]
[1731270317775,36.44738229,206.64,206.56,36.44738229]
[1731270317954,36.44738229,206.62,206.55,16.945]
[1731270318165,36.44738229,206.64,206.56,36.44738229]
[1731270318780,16.6325,206.68,206.61,36.44738229]
[1731270319158,6.2899,206.73,206.63,36.44738229]
[1731270319159,36.44738229,206.71,206.63,36.44738229]
[1731270319461,36.44738229,206.73,206.65,36.44738229]
[1731270319666,36.44738229,206.73,206.66,4.8388]
[1731270319845,36.44738229,206.73,206.66,16.9359]
[1731270320448,36.44738229,206.73,206.67,36.44738229]
[1731270320854,36.44738229,206.73,206.66,16.9359]
[1731270321050,16.6325,206.74,206.66,16.9359]
[1731270321051,16.6325,206.74,206.67,36.44738229]
[1731270321445,36.44738229,206.77,206.69,36.44738229]
[1731270321657,36.44738229,206.75,206.7,4.8379]
[1731270322263,36.44738229,206.77,206.7,53.38008229]
[1731270322458,36.44738229,206.77,206.7,16.9327]
[1731270322651,36.44738229,206.75,206.7,16.9327]
[1731270323668,36.44738229,206.77,206.7,53.38008229]
[1731270323857,36.44738229,206.79,206.7,53.38008229]
[1731270324178,36.44738229,206.81,206.72,36.44738229]
[1731270324385,36.44738229,206.79,206.7,53.38008229]
[1731270324680,36.44738229,206.73,206.66,4.26075111]
[1731270324854,36.44738229,206.69,206.62,4.8396]
[1731270325179,36.44738229,206.65,206.62,4.8396]
[1731270325382,36.44738229,206.65,206.61,12.0997]
[1731270325688,36.44738229,206.67,206.58,36.44738229]
[1731270326182,36.44738229,206.65,206.58,36.44738229]
[1731270326561,36.44738229,206.67,206.58,36.44738229]
[1731270327072,36.44738229,206.67,206.59,16.9417]
[1731270327777,6.2899,206.72,206.59,16.9417]
[1731270327778,36.44738229,206.65,206.59,16.9417]
[1731270328286,36.44738229,206.64,206.59,16.9417]
[1731270328774,36.44738229,206.64,206.59,12.1012]
[1731270329159,36.44738229,206.62,206.59,12.1012]
[1731270329358,36.44738229,206.64,206.59,12.1012]
[1731270329785,36.44738229,206.6,206.52,60.65728229]
[1731270329976,36.44738229,206.62,206.54,36.44738229]
[1731270330177,36.44738229,206.64,206.56,36.44738229]
[1731270330472,36.44738229,206.66,206.58,36.44738229]
[1731270330860,36.44738229,206.64,206.57,16.9433]
[1731270331056,36.44738229,206.62,206.57,16.9433]
[1731270331260,36.44738229,206.6,206.52,16.33969271]
[1731270331474,36.44738229,206.6,206.52,12.1051]
[1731270331674,36.44738229,206.54,206.52,12.1051]
[1731270331879,36.44738229,206.58,206.52,16.9472]
[1731270333070,36.44738229,206.56,206.52,16.9472]
[1731270333477,36.44738229,206.58,206.52,16.9472]
[1731270333866,36.44738229,206.6,206.52,53.39458229]
[1731270334074,4.8386,206.67,206.52,53.39458229]
[1731270334075,36.44738229,206.62,206.54,36.44738229]
[1731270334662,36.44738229,206.64,206.56,36.44738229]
[1731270334863,36.44738229,206.67,206.59,36.44738229]
[1731270335360,36.44738229,206.63,206.55,36.44738229]
[1731270335561,36.44738229,206.58,206.53,4.8419]
[1731270335762,36.44738229,206.58,206.52,12.1053]
[1731270335987,36.44738229,206.56,206.52,12.1053]
[1731270336172,36.44738229,206.58,206.52,12.1053]
[1731270336959,36.44738229,206.62,206.53,36.44738229]
[1731270337194,36.44738229,206.59,206.52,53.39478229]
[1731270337477,36.44738229,206.62,206.54,36.44738229]
[1731270337677,11.1274,206.72,206.6,36.44738229]
[1731270337858,36.44738229,206.69,206.6,36.44738229]
[1731270338574,36.44738229,206.69,206.62,36.44738229]
[1731270338768,36.44738229,206.69,206.62,53.38638229]
[1731270338978,15.6302,206.74,206.67,36.44738229]
[1731270338979,52.07758229,206.74,206.67,36.44738229]
[1731270339162,36.44738229,206.73,206.66,36.44738229]
[1731270339368,36.44738229,206.69,206.62,53.38638229]
[1731270339569,36.44738229,206.68,206.62,16.939]
[1731270339790,36.44738229,206.67,206.62,16.939]
[1731270340087,0.1,206.65,206.43,4.8517]
[1731270340297,15.6302,206.64,206.5,12.106]
[1731270340474,15.6302,206.64,206.5,11.56940416]
[1731270340876,36.44738229,206.58,206.51,36.44738229]
[1731270341189,36.44738229,206.56,206.5,11.56940416]
[1731270341378,36.44738229,206.54,206.5,11.56940416]
[1731270342185,36.44738229,206.56,206.5,11.56940416]
[1731270342578,36.44738229,206.54,206.5,11.56940416]
[1731270343189,36.44738229,206.56,206.5,11.56940416]
[1731270343689,36.44738229,206.58,206.5,48.01678645]
[1731270343889,36.44738229,206.58,206.52,36.44738229]
[1731270344282,36.44738229,206.61,206.53,36.44738229]
[1731270344491,36.44738229,206.59,206.5,11.56940416]
[1731270344684,36.44738229,206.59,206.5,48.01678645]
[1731270344993,36.44738229,206.57,206.5,52.85938645]
[1731270345181,36.44738229,206.55,206.5,16.41200416]
[1731270345379,36.44738229,206.53,206.5,11.56940416]
[1731270345588,36.44738229,206.55,206.5,16.41200416]
[1731270345897,35.94738229,206.55,206.5,16.41200416]
[1731270346598,36.44738229,206.53,206.5,11.56940416]
[1731270348985,36.44738229,206.55,206.5,11.56940416]
[1731270349288,36.44738229,206.6,206.53,36.44738229]
[1731270349604,36.44738229,206.55,206.5,11.56940416]
[1731270349816,36.44738229,206.54,206.5,11.56940416]
[1731270350098,0.1,206.62,206.45,41.1718]
[1731270350099,36.44738229,206.52,206.45,41.1718]
[1731270350301,36.44738229,206.5,206.45,41.1718]
[1731270352085,36.44738229,206.5,206.45,36.3281]
[1731270352682,36.44738229,206.52,206.45,36.3281]
[1731270352891,36.44738229,206.52,206.46,36.44738229]
[1731270354301,36.44738229,206.52,206.45,36.3281]
[1731270354302,36.44738229,206.5,206.45,12.1094]
[1731270354508,36.44738229,206.48,206.45,12.1094]
[1731270354793,36.44738229,206.51,206.45,12.1094]
[1731270355182,36.44738229,206.53,206.46,36.44738229]
[1731270355587,36.44738229,206.53,206.45,12.1094]
[1731270355983,36.44738229,206.51,206.45,12.1094]
[1731270356698,36.44738229,206.51,206.45,16.9531]
[1731270358598,36.44738229,206.51,206.45,12.1094]
[1731270359590,36.44738229,206.58,206.5,36.44738229]
[1731270359787,6.6172,206.61,206.49,36.44738229]
[1731270359788,36.44738229,206.57,206.49,36.44738229]
[1731270360308,36.44738229,206.58,206.5,36.44738229]
[1731270360710,36.44738229,206.54,206.51,16.9482]
[1731270360891,36.44738229,206.52,206.51,12.1059]
[1731270361095,36.44738229,206.52,206.49,4.8426]
[1731270361294,36.44738229,206.5,206.47,16.9513]
[1731270361502,36.44738229,206.48,206.47,12.1081]
[1731270361707,36.44738229,206.51,206.47,12.1081]
[1731270361889,36.44738229,206.54,206.47,53.39878229]
[1731270362300,36.44738229,206.53,206.47,16.9514]
[1731270363009,36.44738229,206.6,206.47,16.9514]
[1731270363010,36.44738229,206.52,206.47,16.9514]
[1731270363990,36.44738229,206.54,206.47,53.39878229]
[1731270364187,36.44738229,206.54,206.47,16.9514]
[1731270364403,36.44738229,206.51,206.47,16.9514]
[1731270365423,36.44738229,206.53,206.47,16.9514]
[1731270367103,36.44738229,206.49,206.47,16.9514]
[1731270367488,36.44738229,206.49,206.43,12.1104]
[1731270367690,36.44738229,206.49,206.41,4.8445]
[1731270367691,36.44738229,206.44,206.41,4.8445]
[1731270367890,36.44738229,206.42,206.34,16.9622]
[1731270368191,36.44738229,206.38,206.34,16.9622]
[1731270368384,36.44738229,206.36,206.34,16.9622]
[1731270368783,36.44738229,206.38,206.34,16.9622]
[1731270369507,36.44738229,206.36,206.34,12.1159]
[1731270369886,51.60208229,206.4,206.34,16.9622]
[1731270370495,36.44738229,206.4,206.34,12.1159]
[1731270371590,36.44738229,206.4,206.34,48.56328229]
[1731270371796,36.44738229,206.42,206.34,48.56328229]
[1731270372108,51.87078229,206.46,206.38,36.44738229]
[1731270372409,6.34,206.55,206.45,36.44738229]
[1731270372612,36.44738229,206.51,206.46,41.17]
[1731270372789,11.1815,206.55,206.46,16.9523]
[1731270372985,36.44738229,206.49,206.46,16.9523]
[1731270373188,36.44738229,206.47,206.44,4.8439]
[1731270373402,36.44738229,206.51,206.44,4.8439]
[1731270373597,36.44738229,206.53,206.45,36.44738229]
[1731270373788,36.44738229,206.51,206.44,16.9539]
[1731270375998,36.44738229,206.57,206.5,36.44738229]
[1731270376408,15.4234,206.58,206.52,36.44738229]
[1731270376921,4.8378,206.71,206.54,36.44738229]
[1731270377108,36.44738229,206.69,206.61,36.44738229]
[1731270378015,36.44738229,206.69,206.54,4.48963697]
[1731270378016,36.44738229,206.71,206.63,36.44738229]
[1731270378213,36.44738229,206.69,206.64,16.9376]
[1731270378699,36.44738229,206.71,206.64,16.9376]
[1731270380109,36.44738229,206.69,206.64,16.9376]
[1731270380307,36.44738229,206.69,206.64,12.0983]
[1731270381810,36.44738229,206.67,206.64,12.0983]
[1731270381995,15.4234,206.72,206.64,12.0983]
[1731270381996,36.44738229,206.69,206.64,12.0983]
[1731270382190,36.44738229,206.67,206.64,12.0983]
[1731270383012,36.44738229,206.7,206.64,12.0983]
[1731270383407,36.44738229,206.68,206.64,12.0983]
[1731270384118,36.44738229,206.7,206.64,12.0983]
[1731270384297,51.87078229,206.72,206.64,36.44738229]
[1731270385199,36.44738229,206.74,206.66,36.44738229]
[1731270385400,36.44738229,206.76,206.68,36.44738229]
[1731270385598,21.7634,206.68,206.56,46.06514105]
[1731270385801,36.44738229,206.61,206.56,41.1502]
[1731270386002,36.44738229,206.59,206.56,16.9442]
[1731270386203,36.44738229,206.57,206.56,12.103]
[1731270386418,36.44738229,206.57,206.5,21.30320261]
[1731270386617,36.44738229,206.55,206.5,16.9491]
[1731270386821,36.44738229,206.51,206.5,12.1065]
[1731270387116,36.44738229,206.51,206.48,4.8429]
[1731270387324,36.44738229,206.53,206.48,16.9506]
[1731270387504,36.44738229,206.54,206.48,16.9506]
[1731270388100,15.4234,206.55,206.48,16.9506]
[1731270388101,36.44738229,206.52,206.48,16.9506]
[1731270388399,36.44738229,206.52,206.48,12.1077]
[1731270389497,15.4234,206.55,206.48,12.1077]
[1731270389498,36.44738229,206.5,206.48,12.1077]
[1731270389701,36.44738229,206.5,206.44,4.844]
[1731270390022,36.44738229,206.5,206.36,4.8459]
[1731270390023,36.44738229,206.45,206.36,4.8459]
[1731270390330,36.44738229,206.41,206.33,36.44738229]
[1731270390502,36.44738229,206.39,206.36,12.1147]
[1731270391003,36.44738229,206.37,206.36,12.1147]
[1731270391310,36.44738229,206.41,206.36,12.1147]
[1731270392031,36.44738229,206.39,206.36,12.1147]
[1731270393004,36.44738229,206.42,206.37,23.776884]
[1731270393204,36.44738229,206.41,206.37,23.776884]
[1731270393716,36.44738229,206.38,206.36,12.1147]
[1731270394037,36.44738229,206.38,206.33,4.8466]
[1731270394320,36.44738229,206.34,206.33,4.8466]
[1731270394536,36.44738229,206.34,206.25,12.1206]
[1731270394822,36.44738229,206.28,206.25,12.1206]
[1731270395010,36.44738229,206.26,206.25,12.1206]
[1731270397818,36.44738229,206.28,206.21,60.22426629]
[1731270398929,36.44738229,206.26,206.21,23.776884]
[1731270399117,36.44738229,206.26,206.2,41.222]
[1731270399118,36.44738229,206.24,206.2,16.9737]
[1731270399441,36.44738229,206.24,206.2,12.1241]
[1731270400014,36.44738229,206.22,206.2,12.1241]
[1731270401236,36.44738229,206.22,206.16,4.8506]
[1731270401527,36.44738229,206.2,206.16,4.8506]
[1731270401731,36.44738229,206.22,206.16,4.8506]
[1731270402312,36.44738229,206.24,206.17,23.776884]
[1731270403031,36.44738229,206.26,206.19,23.776884]
[1731270403731,36.44738229,206.24,206.17,23.776884]
[1731270404308,36.44738229,206.26,206.2,36.44738229]
[1731270404507,36.44738229,206.25,206.19,23.776884]
[1731270404726,36.44738229,206.24,206.18,41.226]
[1731270405006,36.44738229,206.22,206.18,16.9754]
[1731270406211,36.44738229,206.2,206.18,12.1253]
[1731270406427,36.44738229,206.2,206.13,12.128]
[1731270407743,15.9129,206.29,206.17,36.44738229]
[1731270407920,36.44738229,206.26,206.19,36.44738229]
[1731270408125,36.44738229,206.25,206.18,23.776884]
[1731270408632,36.44738229,206.25,206.19,16.9745]
[1731270409827,36.44738229,206.27,206.19,53.42188229]
[1731270410026,36.44738229,206.28,206.2,36.44738229]
[1731270410213,36.44738229,206.26,206.19,16.9745]
[1731270410635,36.44738229,206.27,206.19,53.42188229]
[1731270410932,36.44738229,206.26,206.19,16.9745]
[1731270411111,36.44738229,206.27,206.19,53.42188229]
[1731270411313,36.44738229,206.27,206.2,36.44738229]
[1731270411832,36.44738229,206.27,206.19,53.42188229]
[1731270412420,36.44738229,206.27,206.2,23.776884]
[1731270412634,36.44738229,206.27,206.19,53.42188229]
[1731270412936,36.44738229,206.26,206.19,16.9745]
[1731270413124,36.44738229,206.25,206.19,16.9745]
[1731270413435,36.44738229,206.2,206.19,16.9745]
[1731270415340,36.44738229,206.2,206.16,24.2521]
[1731270417341,36.44738229,206.24,206.17,23.776884]
[1731270417529,36.44738229,206.24,206.17,60.22426629]
[1731270418130,36.44738229,206.25,206.17,60.22426629]
[1731270418634,36.44738229,206.24,206.17,60.22426629]
[1731270420222,36.44738229,206.24,206.18,16.9754]
[1731270421130,36.44738229,206.25,206.18,16.9754]
[1731270421332,36.44738229,206.26,206.19,60.22426629]
[1731270421640,0.1,206.27,206.18,12.1253]
[1731270421845,0.1,206.24,206.12,12.1284]
[1731270422043,0.1,206.19,206.04,16.9869]
[1731270422253,0.1,206.16,206.04,16.9869]
[1731270422537,0.2,206.16,206.04,16.9869]
[1731270422739,0.1,206.14,206.04,16.9869]
[1731270423121,36.44738229,206.07,206.04,12.1335]
[1731270423937,36.44738229,206.1,206.04,12.1335]
[1731270424721,36.44738229,206.09,206.04,12.1335]
[1731270424946,36.44738229,206.08,206.04,12.1335]
[1731270425251,36.44738229,206.05,206.04,12.1335]
[1731270427122,36.44738229,206.09,206.04,12.1335]
[1731270427928,6.2692,206.1,206.04,12.1335]
[1731270428138,36.44738229,206.11,206.04,12.1335]
[1731270428342,36.44738229,206.11,206.04,16.9869]
[1731270428651,36.44738229,206.1,206.04,16.9869]
[1731270428830,36.44738229,206.12,206.04,16.9869]
[1731270429035,36.44738229,206.12,206.05,36.44738229]
[1731270429239,15.9298,206.21,206.11,36.44738229]
[1731270429240,36.44738229,206.18,206.11,36.44738229]
[1731270429428,36.44738229,206.18,206.05,23.776884]
[1731270429429,36.44738229,206.18,206.09,36.44738229]
[1731270429744,15.9298,206.21,206.05,23.776884]
[1731270429745,36.44738229,206.14,206.07,36.44738229]
[1731270430125,36.44738229,206.11,206.05,4.30041698]
[1731270430325,36.44738229,206.09,206.04,41.254]
[1731270430545,0.1,206.19,206.04,41.254]
[1731270430546,36.44738229,206.08,206.04,41.254]
[1731270431544,36.44738229,206.08,206.04,36.4006]
[1731270431744,36.44738229,206.09,206.04,36.4006]
[1731270432248,16.0298,206.21,206.06,36.44738229]
[1731270432249,36.44738229,206.14,206.06,36.44738229]
[1731270432541,36.54738229,206.2,206.04,36.4006]
[1731270432542,36.44738229,206.15,206.07,36.44738229]
[1731270432745,36.44738229,206.17,206.09,36.44738229]
[1731270432926,36.44738229,206.18,206.1,36.44738229]
[1731270433331,36.44738229,206.18,206.05,23.776884]
[1731270433332,36.44738229,206.2,206.13,36.44738229]
[1731270433833,50.87718229,206.21,206.14,16.9786]
[1731270434038,50.87718229,206.21,206.14,53.42598229]
[1731270434439,0.1,206.31,206.14,53.42598229]
[1731270434440,36.44738229,206.26,206.19,36.44738229]
[1731270434730,42.65838229,206.28,206.2,36.44738229]
[1731270435141,36.44738229,206.27,206.2,36.44738229]
[1731270435953,36.44738229,206.27,206.21,16.9729]
[1731270436456,36.44738229,206.3,206.22,36.44738229]
[1731270436658,36.44738229,206.32,206.25,36.44738229]
[1731270436839,36.44738229,206.33,206.26,36.44738229]
[1731270437255,36.44738229,206.3,206.23,36.44738229]
[1731270437442,36.44738229,206.29,206.22,60.22426629]
[1731270437747,36.44738229,206.31,206.23,36.44738229]
[1731270437939,36.44738229,206.31,206.22,23.776884]
[1731270437940,36.44738229,206.31,206.25,16.9696]
[1731270438734,36.44738229,206.3,206.25,16.9696]
[1731270439136,36.44738229,206.28,206.25,16.9696]
[1731270439864,36.44738229,206.27,206.25,16.9696]
[1731270440354,36.44738229,206.27,206.21,24.2471]
[1731270440543,36.44738229,206.28,206.21,24.2471]
[1731270440858,36.44738229,206.22,206.2,16.9737]
[1731270441160,36.44738229,206.21,206.18,4.85]
[1731270441451,0.1,206.29,206.18,4.85]
[1731270441452,36.44738229,206.22,206.18,4.85]
[1731270442353,36.44738229,206.22,206.18,12.1253]
[1731270443054,36.44738229,206.23,206.18,12.1253]
[1731270443431,36.44738229,206.22,206.14,60.70268229]
[1731270443838,36.44738229,206.22,206.15,36.44738229]
[1731270445459,36.44738229,206.22,206.16,16.9771]
[1731270446358,36.44738229,206.23,206.16,53.42448229]
[1731270446561,36.44738229,206.25,206.18,36.44738229]
[1731270446763,36.44738229,206.19,206.12,4.8514]
[1731270446938,36.44738229,206.17,206.12,4.8514]
[1731270447265,36.44738229,206.13,206.07,16.9844]
[1731270447457,36.44738229,206.08,205.99,3.9567322]
[1731270447648,36.44738229,206.04,206.02,12.1342]
[1731270448001,36.44738229,206.03,206.02,12.1342]
[1731270448255,36.44738229,206.03,205.99,3.9567322]
[1731270448431,36.44738229,206.03,205.99,20.9476322]
[1731270448630,36.44738229,206.02,205.99,20.9476322]
[1731270449654,36.44738229,206.0,205.99,16.0932322]
[1731270449837,36.44738229,206.0,205.99,3.9567322]
[1731270450152,36.44738229,206.02,205.99,3.9567322]
[1731270450357,15.6828,206.03,205.99,3.9567322]
[1731270450870,36.44738229,206.0,205.99,3.9567322]
[1731270452065,36.44738229,206.01,205.99,3.9567322]
[1731270452459,36.44738229,206.0,205.99,3.9567322]
[1731270453570,36.44738229,206.02,205.99,20.9475322]
[1731270453768,36.44738229,206.01,205.99,20.9475322]
[1731270456164,36.44738229,206.0,205.99,3.9567322]
[1731270457280,36.44738229,206.02,205.99,8.8113322]
[1731270457568,15.6828,206.03,205.99,3.9567322]
[1731270457569,36.44738229,206.0,205.99,3.9567322]
[1731270463380,36.44738229,206.0,205.89,12.1418]
[1731270463381,4.8546,205.99,205.89,12.1418]
[1731270463577,36.44738229,205.95,205.88,36.44738229]
[1731270463761,36.44738229,205.95,205.88,0.83912452]
[1731270464169,36.44738229,205.95,205.89,16.9993]
[1731270464981,36.44738229,205.97,205.9,36.44738229]
[1731270465169,36.44738229,205.98,205.91,36.44738229]
[1731270465862,36.44738229,205.99,205.91,36.44738229]
[1731270466065,36.44738229,205.98,205.91,36.44738229]
[1731270466372,36.44738229,205.97,205.92,12.1406]
[1731270467564,36.44738229,205.95,205.92,12.1406]